[Event "Titled Tuesday Blitz October 04 Early 2022"]
[White "Timofeev, Artyom"]
[Black "Girel, Joseph"]
[WhiteFideId "4140419"]
[BlackFideId "36033561"]
[WhiteElo "2579"]
[BlackElo "2281"]
[Result "0-1"]
[Round "07"]
[TimeControl "180+1"]
[Date "2022.10.04"]
[WhiteClock "0:00:01"]
[BlackClock "0:00:10"]

1. e4 {[%clk 0:03:00]}  e5 {[%clk 0:02:56]} 2. Nf3 {[%clk 0:03:00]}  Nc6 {[%clk 0:02:56]} 3. Bb5 {[%clk 0:03:00]}  Nf6 {[%clk 0:02:54]} 4. O-O {[%clk 0:02:59]}  Nxe4 {[%clk 0:02:53]} 5. d4 {[%clk 0:02:59]}  Nd6 {[%clk 0:02:53]} 6. Bxc6 {[%clk 0:02:59]}  dxc6 {[%clk 0:02:54]} 7. dxe5 {[%clk 0:02:59]}  Nf5 {[%clk 0:02:55]} 8. Qxd8+ {[%clk 0:02:59]}  Kxd8 {[%clk 0:02:56]} 9. Nc3 {[%clk 0:03:00]}  Be7 {[%clk 0:02:54]} 10. h3 {[%clk 0:02:59]}  Nh4 {[%clk 0:02:52]} 11. Rd1+ {[%clk 0:02:56]}  Ke8 {[%clk 0:02:52]} 12. Nd4 {[%clk 0:02:56]}  Nf5 {[%clk 0:02:51]} 13. Nce2 {[%clk 0:02:52]}  Nxd4 {[%clk 0:02:51]} 14. Nxd4 {[%clk 0:02:52]}  h5 {[%clk 0:02:51]} 15. Bf4 {[%clk 0:02:48]}  h4 {[%clk 0:02:41]} 16. e6 {[%clk 0:02:48]}  Bxe6 {[%clk 0:02:41]} 17. Nxe6 {[%clk 0:02:44]}  fxe6 {[%clk 0:02:42]} 18. Bxc7 {[%clk 0:02:44]}  Rh5 {[%clk 0:02:41]} 19. c4 {[%clk 0:02:35]}  Rc8 {[%clk 0:02:32]} 20. Bf4 {[%clk 0:02:34]}  Rf5 {[%clk 0:02:28]} 21. Be3 {[%clk 0:02:31]}  a6 {[%clk 0:02:20]} 22. b3 {[%clk 0:02:24]}  Rd8 {[%clk 0:02:19]} 23. Kf1 {[%clk 0:02:18]}  Bc5 {[%clk 0:02:08]} 24. Rxd8+ {[%clk 0:02:09]}  Kxd8 {[%clk 0:02:09]} 25. Re1 {[%clk 0:02:09]}  Bxe3 {[%clk 0:02:05]} 26. Rxe3 {[%clk 0:02:09]}  Kd7 {[%clk 0:02:06]} 27. Ke2 {[%clk 0:02:02]}  Kd6 {[%clk 0:02:04]} 28. Re4 {[%clk 0:01:56]}  g5 {[%clk 0:02:01]} 29. Ke3 {[%clk 0:01:54]}  e5 {[%clk 0:01:50]} 30. g3 {[%clk 0:01:50]}  hxg3 {[%clk 0:01:51]} 31. fxg3 {[%clk 0:01:50]}  Ke6 {[%clk 0:01:49]} 32. Rg4 {[%clk 0:01:41]}  Kf6 {[%clk 0:01:47]} 33. Ke2 {[%clk 0:01:41]}  Ke6 {[%clk 0:01:43]} 34. a4 {[%clk 0:01:38]}  a5 {[%clk 0:01:42]} 35. h4 {[%clk 0:01:34]}  gxh4 {[%clk 0:01:41]} 36. gxh4 {[%clk 0:01:34]}  Kf6 {[%clk 0:01:37]} 37. Rg1 {[%clk 0:01:23]}  Rf4 {[%clk 0:01:30]} 38. Rh1 {[%clk 0:01:20]}  Kg6 {[%clk 0:01:29]} 39. h5+ {[%clk 0:01:18]}  Kh6 {[%clk 0:01:29]} 40. Ke3 {[%clk 0:01:18]}  Rg4 {[%clk 0:01:27]} 41. Rh3 {[%clk 0:01:18]}  Rf4 {[%clk 0:01:22]} 42. Kd3 {[%clk 0:01:08]}  Rd4+ {[%clk 0:01:13]} 43. Ke3 {[%clk 0:01:08]}  Rg4 {[%clk 0:01:09]} 44. Kf3 {[%clk 0:00:55]}  Rd4 {[%clk 0:01:07]} 45. Ke3 {[%clk 0:00:55]}  Rg4 {[%clk 0:01:06]} 46. Rh1 {[%clk 0:00:50]}  Rg3+ {[%clk 0:01:05]} 47. Ke4 {[%clk 0:00:50]}  Rxb3 {[%clk 0:01:04]} 48. Kxe5 {[%clk 0:00:50]}  Rb4 {[%clk 0:01:04]} 49. c5 {[%clk 0:00:50]}  Rxa4 {[%clk 0:00:50]} 50. Kd6 {[%clk 0:00:42]}  Rb4 {[%clk 0:00:48]} 51. Kc7 {[%clk 0:00:33]}  a4 {[%clk 0:00:46]} 52. Rh3 {[%clk 0:00:28]}  Rb3 {[%clk 0:00:45]} 53. Rh4 {[%clk 0:00:28]}  a3 {[%clk 0:00:43]} 54. Kd6 {[%clk 0:00:20]}  a2 {[%clk 0:00:37]} 55. Ra4 {[%clk 0:00:20]}  Rb2 {[%clk 0:00:37]} 56. Kc7 {[%clk 0:00:16]}  Kxh5 {[%clk 0:00:37]} 57. Kd6 {[%clk 0:00:10]}  Kg5 {[%clk 0:00:38]} 58. Kc7 {[%clk 0:00:10]}  Kg6 {[%clk 0:00:37]} 59. Kd7 {[%clk 0:00:10]}  Kf6 {[%clk 0:00:37]} 60. Kd6 {[%clk 0:00:10]}  Rd2+ {[%clk 0:00:29]} 61. Kc7 {[%clk 0:00:10]}  Ke6 {[%clk 0:00:17]} 62. Kxb7 {[%clk 0:00:10]}  Kd5 {[%clk 0:00:18]} 63. Ra5 {[%clk 0:00:10]}  Rb2+ {[%clk 0:00:17]} 64. Kc7 {[%clk 0:00:10]}  Rc2 {[%clk 0:00:16]} 65. Kb6 {[%clk 0:00:07]}  Rg2 {[%clk 0:00:08]} 66. Kc7 {[%clk 0:00:06]}  Rh2 {[%clk 0:00:08]} 67. Kb6 {[%clk 0:00:06]}  Rc2 {[%clk 0:00:09]} 68. Ra3 {[%clk 0:00:03]}  Rb2+ {[%clk 0:00:06]} 69. Kc7 {[%clk 0:00:03]}  Kxc5 {[%clk 0:00:07]} 70. Ra5+ {[%clk 0:00:02]}  Kb4 {[%clk 0:00:07]} 71. Ra8 {[%clk 0:00:01]}  Kb3 {[%clk 0:00:08]} 72. Kxc6 {[%clk 0:00:01]}  Kc2 {[%clk 0:00:09]} 73. Kc5 {[%clk 0:00:01]}  Kb1 {[%clk 0:00:09]} 74. Kc4 {[%clk 0:00:01]}  a1=Q {[%clk 0:00:10]} 0-1


[Site "https://www.chess.com"]

[Event "Titled Tuesday Blitz October 04 Early 2022"]
[White "Tsaruk, Maksim"]
[Black "Beerdsen, Thomas"]
[WhiteFideId "13511173"]
[BlackFideId "1030108"]
[WhiteElo "2273"]
[BlackElo "2567"]
[Result "1-0"]
[Round "07"]
[TimeControl "180+1"]
[Date "2022.10.04"]
[WhiteClock "0:00:06"]
[BlackClock "0:00:05"]

1. e4 {[%clk 0:02:59]}  e5 {[%clk 0:02:59]} 2. Nf3 {[%clk 0:03:00]}  Nc6 {[%clk 0:03:00]} 3. Bb5 {[%clk 0:03:00]}  f5 {[%clk 0:03:01]} 4. d3 {[%clk 0:02:59]}  fxe4 {[%clk 0:03:01]} 5. dxe4 {[%clk 0:02:59]}  Nf6 {[%clk 0:03:02]} 6. O-O {[%clk 0:02:58]}  d6 {[%clk 0:03:02]} 7. Qd3 {[%clk 0:02:56]}  Be7 {[%clk 0:03:01]} 8. Bc4 {[%clk 0:02:46]}  Na5 {[%clk 0:02:58]} 9. Nc3 {[%clk 0:02:46]}  c6 {[%clk 0:02:52]} 10. Bg5 {[%clk 0:02:27]}  b5 {[%clk 0:02:41]} 11. Bb3 {[%clk 0:02:24]}  b4 {[%clk 0:02:36]} 12. Ne2 {[%clk 0:02:19]}  Qb6 {[%clk 0:02:30]} 13. Bxf6 {[%clk 0:02:09]}  Ba6 {[%clk 0:02:28]} 14. Qd2 {[%clk 0:01:44]}  gxf6 {[%clk 0:02:28]} 15. Rfd1 {[%clk 0:01:40]}  O-O-O {[%clk 0:02:25]} 16. Ng3 {[%clk 0:01:40]}  d5 {[%clk 0:02:18]} 17. exd5 {[%clk 0:01:38]}  Nxb3 {[%clk 0:02:17]} 18. axb3 {[%clk 0:01:38]}  cxd5 {[%clk 0:02:18]} 19. Ra2 {[%clk 0:01:00]}  Bb7 {[%clk 0:02:05]} 20. Rda1 {[%clk 0:00:59]}  a6 {[%clk 0:02:04]} 21. Qe2 {[%clk 0:00:50]}  Qb5 {[%clk 0:01:58]} 22. Qxb5 {[%clk 0:00:46]}  axb5 {[%clk 0:01:59]} 23. Ra5 {[%clk 0:00:47]}  Kc7 {[%clk 0:01:59]} 24. Rxb5 {[%clk 0:00:46]}  Ra8 {[%clk 0:01:59]} 25. Rba5 {[%clk 0:00:46]}  Rxa5 {[%clk 0:01:56]} 26. Rxa5 {[%clk 0:00:46]}  Kb6 {[%clk 0:01:57]} 27. Ra1 {[%clk 0:00:46]}  Rc8 {[%clk 0:01:57]} 28. Nf5 {[%clk 0:00:44]}  Bf8 {[%clk 0:01:55]} 29. Ne3 {[%clk 0:00:44]}  Bh6 {[%clk 0:01:55]} 30. Ne1 {[%clk 0:00:44]}  Bxe3 {[%clk 0:01:40]} 31. fxe3 {[%clk 0:00:44]}  h5 {[%clk 0:01:11]} 32. Kf2 {[%clk 0:00:36]}  h4 {[%clk 0:01:12]} 33. Ke2 {[%clk 0:00:34]}  Ba6+ {[%clk 0:01:08]} 34. Kd2 {[%clk 0:00:31]}  Rg8 {[%clk 0:01:08]} 35. Ra4 {[%clk 0:00:29]}  Bf1 {[%clk 0:01:06]} 36. Rxb4+ {[%clk 0:00:28]}  Kc5 {[%clk 0:01:07]} 37. Rxh4 {[%clk 0:00:29]}  Bxg2 {[%clk 0:01:06]} 38. Rh6 {[%clk 0:00:15]}  f5 {[%clk 0:00:41]} 39. Nd3+ {[%clk 0:00:15]}  Kb5 {[%clk 0:00:42]} 40. Nxe5 {[%clk 0:00:15]}  Be4 {[%clk 0:00:43]} 41. Nd3 {[%clk 0:00:16]}  Rg2+ {[%clk 0:00:43]} 42. Kc3 {[%clk 0:00:16]}  Re2 {[%clk 0:00:44]} 43. h4 {[%clk 0:00:07]}  Rxe3 {[%clk 0:00:44]} 44. h5 {[%clk 0:00:06]}  Rh3 {[%clk 0:00:40]} 45. Rh8 {[%clk 0:00:06]}  f4 {[%clk 0:00:40]} 46. h6 {[%clk 0:00:06]}  f3 {[%clk 0:00:40]} 47. Kd4 {[%clk 0:00:06]}  Bxd3 {[%clk 0:00:40]} 48. cxd3 {[%clk 0:00:06]}  f2 {[%clk 0:00:39]} 49. Rf8 {[%clk 0:00:06]}  Kb4 {[%clk 0:00:31]} 50. Rxf2 {[%clk 0:00:06]}  Rxh6 {[%clk 0:00:29]} 51. Kxd5 {[%clk 0:00:05]}  Rh5+ {[%clk 0:00:25]} 52. Ke4 {[%clk 0:00:06]}  Kxb3 {[%clk 0:00:22]} 53. d4 {[%clk 0:00:06]}  Rh4+ {[%clk 0:00:19]} 54. Rf4 {[%clk 0:00:06]}  Rh2 {[%clk 0:00:17]} 55. Rf3+ {[%clk 0:00:05]}  Kc4 {[%clk 0:00:14]} 56. b3+ {[%clk 0:00:06]}  Kb5 {[%clk 0:00:14]} 57. Ke5 {[%clk 0:00:05]}  Rh5+ {[%clk 0:00:12]} 58. Rf5 {[%clk 0:00:05]}  Rh4 {[%clk 0:00:12]} 59. Kd6+ {[%clk 0:00:05]}  Kb6 {[%clk 0:00:12]} 60. d5 {[%clk 0:00:05]}  Rh6+ {[%clk 0:00:13]} 61. Ke5 {[%clk 0:00:04]}  Kc5 {[%clk 0:00:11]} 62. b4+ {[%clk 0:00:04]}  Kxb4 {[%clk 0:00:11]} 63. d6 {[%clk 0:00:03]}  Kc5 {[%clk 0:00:12]} 64. d7 {[%clk 0:00:03]}  Rd6 {[%clk 0:00:12]} 65. Rf7 {[%clk 0:00:02]}  Kc6 {[%clk 0:00:13]} 66. Rf6 {[%clk 0:00:03]}  Rxf6 {[%clk 0:00:10]} 67. d8=Q {[%clk 0:00:04]}  Rf2 {[%clk 0:00:05]} 68. Qe8+ {[%clk 0:00:04]}  Kb6 {[%clk 0:00:05]} 69. Qb8+ {[%clk 0:00:04]}  Ka6 {[%clk 0:00:04]} 70. Qd6+ {[%clk 0:00:04]}  Kb7 {[%clk 0:00:03]} 71. Qd7+ {[%clk 0:00:04]}  Kb8 {[%clk 0:00:04]} 72. Qb5+ {[%clk 0:00:04]}  Ka8 {[%clk 0:00:03]} 73. Qa6+ {[%clk 0:00:05]}  Kb8 {[%clk 0:00:04]} 74. Qb6+ {[%clk 0:00:05]}  Ka8 {[%clk 0:00:05]} 75. Qxf2 {[%clk 0:00:06]} 1-0


[Site "https://www.chess.com"]

[Event "Titled Tuesday Blitz October 04 Early 2022"]
[White "Vignesh, N R"]
[Black "Bluebaum, Matthias"]
[WhiteFideId "25012215"]
[BlackFideId "24651516"]
[WhiteElo "2386"]
[BlackElo "2633"]
[Result "1-0"]
[Round "07"]
[TimeControl "180+1"]
[Date "2022.10.04"]
[WhiteClock "0:00:11"]
[BlackClock "0:00:07"]

1. d4 {[%clk 0:03:00]}  Nf6 {[%clk 0:02:59]} 2. c4 {[%clk 0:03:00]}  e6 {[%clk 0:03:00]} 3. Nf3 {[%clk 0:02:59]}  d5 {[%clk 0:03:00]} 4. g3 {[%clk 0:02:59]}  Bb4+ {[%clk 0:02:59]} 5. Bd2 {[%clk 0:02:58]}  a5 {[%clk 0:02:59]} 6. Bg2 {[%clk 0:02:53]}  O-O {[%clk 0:03:00]} 7. Qc2 {[%clk 0:02:45]}  c5 {[%clk 0:02:55]} 8. cxd5 {[%clk 0:02:28]}  cxd4 {[%clk 0:02:53]} 9. Nxd4 {[%clk 0:02:26]}  Qb6 {[%clk 0:02:52]} 10. e3 {[%clk 0:02:19]}  exd5 {[%clk 0:02:50]} 11. O-O {[%clk 0:02:18]}  Nc6 {[%clk 0:02:50]} 12. Nxc6 {[%clk 0:02:12]}  bxc6 {[%clk 0:02:51]} 13. Rc1 {[%clk 0:02:08]}  Rb8 {[%clk 0:02:50]} 14. Qxc6 {[%clk 0:02:01]}  Bxd2 {[%clk 0:02:50]} 15. Qxb6 {[%clk 0:02:00]}  Rxb6 {[%clk 0:02:48]} 16. Nxd2 {[%clk 0:01:59]}  Rxb2 {[%clk 0:02:49]} 17. Nb3 {[%clk 0:01:58]}  a4 {[%clk 0:02:50]} 18. Nc5 {[%clk 0:01:58]}  a3 {[%clk 0:02:50]} 19. h3 {[%clk 0:01:48]}  Bf5 {[%clk 0:02:47]} 20. Rc3 {[%clk 0:01:46]}  Rc8 {[%clk 0:02:34]} 21. g4 {[%clk 0:01:41]}  Be6 {[%clk 0:02:26]} 22. Na4 {[%clk 0:01:00]}  Rxc3 {[%clk 0:02:10]} 23. Nxc3 {[%clk 0:01:01]}  h5 {[%clk 0:01:50]} 24. gxh5 {[%clk 0:00:56]}  Ne4 {[%clk 0:01:37]} 25. Bxe4 {[%clk 0:00:46]}  dxe4 {[%clk 0:01:38]} 26. Nb1 {[%clk 0:00:46]}  Bc4 {[%clk 0:01:31]} 27. Nxa3 {[%clk 0:00:43]}  Bd3 {[%clk 0:01:30]} 28. Rc1 {[%clk 0:00:40]}  Rxa2 {[%clk 0:01:23]} 29. Nc4 {[%clk 0:00:39]}  Ra7 {[%clk 0:01:06]} 30. Ne5 {[%clk 0:00:37]}  Be2 {[%clk 0:01:06]} 31. Ng4 {[%clk 0:00:18]}  f5 {[%clk 0:01:02]} 32. Ne5 {[%clk 0:00:14]}  Bxh5 {[%clk 0:01:02]} 33. Kh2 {[%clk 0:00:14]}  Re7 {[%clk 0:01:02]} 34. Rc5 {[%clk 0:00:13]}  g5 {[%clk 0:00:53]} 35. h4 {[%clk 0:00:13]}  gxh4 {[%clk 0:00:42]} 36. Kh3 {[%clk 0:00:13]}  Be2 {[%clk 0:00:25]} 37. Kxh4 {[%clk 0:00:13]}  Rg7 {[%clk 0:00:26]} 38. Rc8+ {[%clk 0:00:10]}  Kh7 {[%clk 0:00:26]} 39. Rf8 {[%clk 0:00:09]}  Bg4 {[%clk 0:00:13]} 40. Nxg4 {[%clk 0:00:08]}  Rxg4+ {[%clk 0:00:11]} 41. Kh5 {[%clk 0:00:09]}  Rg1 {[%clk 0:00:02]} 42. Rf7+ {[%clk 0:00:09]}  Kg8 {[%clk 0:00:02]} 43. Rxf5 {[%clk 0:00:09]}  Rh1+ {[%clk 0:00:02]} 44. Kg4 {[%clk 0:00:09]}  Kg7 {[%clk 0:00:03]} 45. Kf4 {[%clk 0:00:09]}  Rh4+ {[%clk 0:00:04]} 46. Ke5 {[%clk 0:00:09]}  Kg6 {[%clk 0:00:04]} 47. Rf6+ {[%clk 0:00:09]}  Kg5 {[%clk 0:00:05]} 48. Rf5+ {[%clk 0:00:09]}  Kg6 {[%clk 0:00:04]} 49. Rf4 {[%clk 0:00:10]}  Rh8 {[%clk 0:00:02]} 50. Kxe4 {[%clk 0:00:10]}  Re8+ {[%clk 0:00:03]} 51. Kf3 {[%clk 0:00:11]}  Ra8 {[%clk 0:00:04]} 52. e4 {[%clk 0:00:11]}  Ra3+ {[%clk 0:00:03]} 53. Kg4 {[%clk 0:00:11]}  Ra8 {[%clk 0:00:04]} 54. Rf5 {[%clk 0:00:11]}  Kh7 {[%clk 0:00:05]} 55. f3 {[%clk 0:00:11]}  Kh8 {[%clk 0:00:05]} 56. Kf4 {[%clk 0:00:12]}  Ra7 {[%clk 0:00:05]} 57. e5 {[%clk 0:00:12]}  Ra4+ {[%clk 0:00:06]} 58. Kg5 {[%clk 0:00:12]}  Ra6 {[%clk 0:00:07]} 59. Rf6 {[%clk 0:00:13]}  Ra7 {[%clk 0:00:07]} 60. f4 {[%clk 0:00:13]}  Kg8 {[%clk 0:00:07]} 61. Kf5 {[%clk 0:00:14]}  Rb7 {[%clk 0:00:07]} 62. e6 {[%clk 0:00:14]}  Rc7 {[%clk 0:00:07]} 63. Ke5 {[%clk 0:00:13]}  Rc5+ {[%clk 0:00:08]} 64. Kd6 {[%clk 0:00:13]}  Rc8 {[%clk 0:00:09]} 65. e7 {[%clk 0:00:13]}  Kh7 {[%clk 0:00:07]} 66. Rf8 {[%clk 0:00:12]}  Rc1 {[%clk 0:00:03]} 67. e8=Q {[%clk 0:00:10]}  Rd1+ {[%clk 0:00:04]} 68. Kc5 {[%clk 0:00:10]}  Rc1+ {[%clk 0:00:04]} 69. Kb4 {[%clk 0:00:11]}  Rb1+ {[%clk 0:00:04]} 70. Kc3 {[%clk 0:00:11]}  Rc1+ {[%clk 0:00:05]} 71. Kd2 {[%clk 0:00:11]}  Rd1+ {[%clk 0:00:05]} 72. Kxd1 {[%clk 0:00:11]}  Kh6 {[%clk 0:00:06]} 73. Rg8 {[%clk 0:00:11]}  Kh7 {[%clk 0:00:07]} 74. Qg6# {[%clk 0:00:11]} 1-0


[Site "https://www.chess.com"]

[Event "Titled Tuesday Blitz October 04 Early 2022"]
[White "Vokhidov, Shamsiddin"]
[Black "Yuan, Qingyu"]
[WhiteFideId "14204223"]
[BlackFideId "8609772"]
[WhiteElo "2619"]
[BlackElo "2359"]
[Result "1-0"]
[Round "07"]
[TimeControl "180+1"]
[Date "2022.10.04"]
[WhiteClock "0:00:14"]
[BlackClock "0:00:03"]

1. e4 {[%clk 0:03:00]}  c6 {[%clk 0:02:58]} 2. d4 {[%clk 0:02:58]}  d5 {[%clk 0:02:59]} 3. exd5 {[%clk 0:02:59]}  cxd5 {[%clk 0:02:59]} 4. Bd3 {[%clk 0:02:59]}  Nc6 {[%clk 0:02:59]} 5. c3 {[%clk 0:02:59]}  Nf6 {[%clk 0:02:59]} 6. h3 {[%clk 0:02:58]}  e5 {[%clk 0:02:56]} 7. dxe5 {[%clk 0:02:58]}  Nxe5 {[%clk 0:02:57]} 8. Qe2 {[%clk 0:02:58]}  Ne4 {[%clk 0:02:51]} 9. Bxe4 {[%clk 0:02:52]}  dxe4 {[%clk 0:02:51]} 10. Qxe4 {[%clk 0:02:52]}  Bd6 {[%clk 0:02:50]} 11. Nf3 {[%clk 0:02:41]}  O-O {[%clk 0:02:34]} 12. Nxe5 {[%clk 0:02:41]}  Bxe5 {[%clk 0:02:27]} 13. O-O {[%clk 0:02:41]}  Re8 {[%clk 0:02:23]} 14. Qf3 {[%clk 0:02:40]}  Qc7 {[%clk 0:02:15]} 15. Be3 {[%clk 0:02:27]}  Bd7 {[%clk 0:02:14]} 16. Nd2 {[%clk 0:02:20]}  Bc6 {[%clk 0:02:14]} 17. Qh5 {[%clk 0:02:16]}  Re6 {[%clk 0:02:06]} 18. Nf3 {[%clk 0:01:56]}  g6 {[%clk 0:01:51]} 19. Qg4 {[%clk 0:01:55]}  h5 {[%clk 0:01:47]} 20. Qc4 {[%clk 0:01:53]}  b5 {[%clk 0:01:24]} 21. Qe2 {[%clk 0:01:52]}  Rae8 {[%clk 0:01:18]} 22. Nxe5 {[%clk 0:01:22]}  Qxe5 {[%clk 0:01:11]} 23. Qd3 {[%clk 0:01:21]}  Be4 {[%clk 0:01:00]} 24. Qd4 {[%clk 0:01:17]}  Qf5 {[%clk 0:00:47]} 25. f3 {[%clk 0:01:17]}  Bc6 {[%clk 0:00:36]} 26. Rae1 {[%clk 0:01:11]}  a6 {[%clk 0:00:24]} 27. Bh6 {[%clk 0:01:04]}  f6 {[%clk 0:00:24]} 28. Rxe6 {[%clk 0:01:03]}  Qxe6 {[%clk 0:00:20]} 29. Bd2 {[%clk 0:00:59]}  Qe5 {[%clk 0:00:15]} 30. Qb6 {[%clk 0:00:57]}  Qd5 {[%clk 0:00:15]} 31. Be3 {[%clk 0:00:53]}  Kf7 {[%clk 0:00:14]} 32. Bd4 {[%clk 0:00:44]}  g5 {[%clk 0:00:10]} 33. Qxa6 {[%clk 0:00:33]}  g4 {[%clk 0:00:10]} 34. hxg4 {[%clk 0:00:20]}  hxg4 {[%clk 0:00:10]} 35. Qa7+ {[%clk 0:00:20]}  Kg6 {[%clk 0:00:09]} 36. Qc7 {[%clk 0:00:19]}  Re2 {[%clk 0:00:08]} 37. Qg3 {[%clk 0:00:18]}  Rxb2 {[%clk 0:00:06]} 38. Qxg4+ {[%clk 0:00:18]}  Qg5 {[%clk 0:00:05]} 39. Qxg5+ {[%clk 0:00:17]}  fxg5 {[%clk 0:00:04]} 40. Rf2 {[%clk 0:00:16]}  Rb1+ {[%clk 0:00:02]} 41. Kh2 {[%clk 0:00:15]}  Bd5 {[%clk 0:00:02]} 42. Bc5 {[%clk 0:00:14]}  Bc4 {[%clk 0:00:02]} 43. Rd2 {[%clk 0:00:13]}  Rc1 {[%clk 0:00:02]} 44. Bb4 {[%clk 0:00:12]}  Rb1 {[%clk 0:00:02]} 45. a3 {[%clk 0:00:13]}  Re1 {[%clk 0:00:02]} 46. Kg3 {[%clk 0:00:13]}  Re6 {[%clk 0:00:03]} 47. Rd6 {[%clk 0:00:11]}  Kf5 {[%clk 0:00:04]} 48. Rxe6 {[%clk 0:00:11]}  Bxe6 {[%clk 0:00:04]} 49. Kf2 {[%clk 0:00:11]}  Bc4 {[%clk 0:00:05]} 50. g4+ {[%clk 0:00:12]}  Kf6 {[%clk 0:00:04]} 51. Ke3 {[%clk 0:00:11]}  Bb3 {[%clk 0:00:04]} 52. Bc5 {[%clk 0:00:11]}  Bd1 {[%clk 0:00:04]} 53. Bd4+ {[%clk 0:00:12]}  Kg6 {[%clk 0:00:04]} 54. Bb6 {[%clk 0:00:12]}  Kh6 {[%clk 0:00:05]} 55. Bd8 {[%clk 0:00:12]}  Kg6 {[%clk 0:00:05]} 56. f4 {[%clk 0:00:12]}  gxf4+ {[%clk 0:00:03]} 57. Kxf4 {[%clk 0:00:13]}  Be2 {[%clk 0:00:02]} 58. g5 {[%clk 0:00:13]}  Bd3 {[%clk 0:00:02]} 59. Ke5 {[%clk 0:00:14]}  Kf7 {[%clk 0:00:01]} 60. Kd4 {[%clk 0:00:13]}  Bc2 {[%clk 0:00:02]} 61. Kc5 {[%clk 0:00:12]}  Bd3 {[%clk 0:00:02]} 62. Kb4 {[%clk 0:00:12]}  Ke6 {[%clk 0:00:01]} 63. a4 {[%clk 0:00:07]}  bxa4 {[%clk 0:00:01]} 64. Kxa4 {[%clk 0:00:08]}  Kd5 {[%clk 0:00:02]} 65. Kb4 {[%clk 0:00:08]}  Be4 {[%clk 0:00:01]} 66. c4+ {[%clk 0:00:08]}  Kc6 {[%clk 0:00:02]} 67. c5 {[%clk 0:00:08]}  Bf5 {[%clk 0:00:03]} 68. Kc4 {[%clk 0:00:09]}  Bb1 {[%clk 0:00:02]} 69. Kd4 {[%clk 0:00:09]}  Kd7 {[%clk 0:00:02]} 70. Ba5 {[%clk 0:00:08]}  Kc6 {[%clk 0:00:02]} 71. Bb4 {[%clk 0:00:08]}  Kd7 {[%clk 0:00:02]} 72. Ke5 {[%clk 0:00:08]}  Kc6 {[%clk 0:00:01]} 73. Kf6 {[%clk 0:00:09]}  Kb5 {[%clk 0:00:02]} 74. g6 {[%clk 0:00:09]}  Ba2 {[%clk 0:00:01]} 75. g7 {[%clk 0:00:09]}  Kc6 {[%clk 0:00:02]} 76. Ke7 {[%clk 0:00:09]}  Kb5 {[%clk 0:00:02]} 77. Kf8 {[%clk 0:00:10]}  Kxb4 {[%clk 0:00:03]} 78. c6 {[%clk 0:00:10]}  Be6 {[%clk 0:00:03]} 79. c7 {[%clk 0:00:11]}  Kc5 {[%clk 0:00:03]} 80. c8=Q+ {[%clk 0:00:12]}  Bxc8 {[%clk 0:00:03]} 81. g8=Q {[%clk 0:00:13]}  Kc6 {[%clk 0:00:04]} 82. Ke7 {[%clk 0:00:13]}  Kc7 {[%clk 0:00:05]} 83. Qd8+ {[%clk 0:00:12]}  Kb7 {[%clk 0:00:04]} 84. Kd6 {[%clk 0:00:13]}  Kb8 {[%clk 0:00:05]} 85. Qc7+ {[%clk 0:00:13]}  Ka8 {[%clk 0:00:05]} 86. Kc6 {[%clk 0:00:13]}  Ba6 {[%clk 0:00:03]} 87. Kb6 {[%clk 0:00:14]} 1-0


[Site "https://www.chess.com"]

[Event "Titled Tuesday Blitz October 04 Early 2022"]
[White "Beerdsen, Thomas"]
[Black "Ohanyan, Emin"]
[WhiteFideId "1030108"]
[BlackFideId "13312022"]
[WhiteElo "2567"]
[BlackElo "2302"]
[Result "0-1"]
[Round "08"]
[TimeControl "180+1"]
[Date "2022.10.04"]
[WhiteClock "0:00:28"]
[BlackClock "0:00:03"]

1. e4 {[%clk 0:03:00]}  e5 {[%clk 0:03:00]} 2. Bc4 {[%clk 0:03:00]}  Nf6 {[%clk 0:03:00]} 3. d3 {[%clk 0:03:01]}  c6 {[%clk 0:03:00]} 4. Nf3 {[%clk 0:03:01]}  d5 {[%clk 0:02:58]} 5. Bb3 {[%clk 0:03:02]}  Bb4+ {[%clk 0:02:59]} 6. Bd2 {[%clk 0:03:01]}  Bxd2+ {[%clk 0:02:42]} 7. Nbxd2 {[%clk 0:03:01]}  Qd6 {[%clk 0:02:40]} 8. O-O {[%clk 0:02:59]}  O-O {[%clk 0:02:40]} 9. Re1 {[%clk 0:02:59]}  Bg4 {[%clk 0:02:37]} 10. h3 {[%clk 0:02:59]}  Bxf3 {[%clk 0:02:37]} 11. Qxf3 {[%clk 0:02:59]}  Nbd7 {[%clk 0:02:38]} 12. Qg3 {[%clk 0:02:57]}  Nh5 {[%clk 0:02:10]} 13. Qh4 {[%clk 0:02:52]}  Nf4 {[%clk 0:02:08]} 14. exd5 {[%clk 0:02:40]}  cxd5 {[%clk 0:02:07]} 15. Nf3 {[%clk 0:02:39]}  Ng6 {[%clk 0:02:03]} 16. Qg3 {[%clk 0:02:35]}  f5 {[%clk 0:00:58]} 17. d4 {[%clk 0:02:27]}  f4 {[%clk 0:00:56]} 18. Qg5 {[%clk 0:02:20]}  Rae8 {[%clk 0:00:42]} 19. dxe5 {[%clk 0:02:15]}  Ngxe5 {[%clk 0:00:42]} 20. Nxe5 {[%clk 0:02:13]}  Nxe5 {[%clk 0:00:38]} 21. Rad1 {[%clk 0:02:12]}  Kh8 {[%clk 0:00:36]} 22. Qh5 {[%clk 0:01:55]}  d4 {[%clk 0:00:31]} 23. Re4 {[%clk 0:01:54]}  f3 {[%clk 0:00:23]} 24. g3 {[%clk 0:01:52]}  g6 {[%clk 0:00:20]} 25. Qh4 {[%clk 0:01:46]}  Nc6 {[%clk 0:00:15]} 26. Rde1 {[%clk 0:01:43]}  Rxe4 {[%clk 0:00:14]} 27. Qxe4 {[%clk 0:01:44]}  Kg7 {[%clk 0:00:13]} 28. Ba4 {[%clk 0:01:43]}  Rf7 {[%clk 0:00:12]} 29. h4 {[%clk 0:01:42]}  Re7 {[%clk 0:00:12]} 30. Bxc6 {[%clk 0:01:42]}  Rxe4 {[%clk 0:00:11]} 31. Bxe4 {[%clk 0:01:43]}  Qe6 {[%clk 0:00:10]} 32. b3 {[%clk 0:01:39]}  Kf6 {[%clk 0:00:07]} 33. a4 {[%clk 0:01:31]}  a5 {[%clk 0:00:06]} 34. Kh2 {[%clk 0:01:26]}  h6 {[%clk 0:00:06]} 35. Kg1 {[%clk 0:01:24]}  g5 {[%clk 0:00:07]} 36. hxg5+ {[%clk 0:01:25]}  Kxg5 {[%clk 0:00:07]} 37. Kh2 {[%clk 0:01:20]}  h5 {[%clk 0:00:07]} 38. b4 {[%clk 0:00:37]}  axb4 {[%clk 0:00:07]} 39. a5 {[%clk 0:00:38]}  Qe8 {[%clk 0:00:04]} 40. Kg1 {[%clk 0:00:33]}  Qe6 {[%clk 0:00:04]} 41. Kh2 {[%clk 0:00:33]}  h4 {[%clk 0:00:04]} 42. gxh4+ {[%clk 0:00:27]}  Kxh4 {[%clk 0:00:03]} 43. Rh1 {[%clk 0:00:28]}  Qxe4 {[%clk 0:00:03]} 0-1


[Site "https://www.chess.com"]

[Event "Titled Tuesday Blitz October 04 Early 2022"]
[White "Duda, Jan-Krzysztof"]
[Black "Shimanov, Aleksandr"]
[WhiteFideId "1170546"]
[BlackFideId "4198603"]
[WhiteElo "2779"]
[BlackElo "2605"]
[Result "1-0"]
[Round "08"]
[TimeControl "180+1"]
[Date "2022.10.04"]
[WhiteClock "0:01:00"]
[BlackClock "0:00:25"]

1. e4 {[%clk 0:02:35]}  d5 {[%clk 0:02:59]} 2. exd5 {[%clk 0:02:33]}  Qxd5 {[%clk 0:03:00]} 3. Nc3 {[%clk 0:02:33]}  Qe5+ {[%clk 0:03:00]} 4. Be2 {[%clk 0:02:32]}  Bg4 {[%clk 0:03:00]} 5. d4 {[%clk 0:02:30]}  Bxe2 {[%clk 0:03:00]} 6. Ngxe2 {[%clk 0:02:30]}  Qa5 {[%clk 0:03:00]} 7. O-O {[%clk 0:02:30]}  Nf6 {[%clk 0:03:00]} 8. b3 {[%clk 0:02:28]}  Nc6 {[%clk 0:02:59]} 9. a4 {[%clk 0:02:24]}  O-O-O {[%clk 0:02:57]} 10. Nb5 {[%clk 0:02:15]}  e5 {[%clk 0:02:44]} 11. Bd2 {[%clk 0:02:09]}  Qb6 {[%clk 0:02:43]} 12. c4 {[%clk 0:01:55]}  exd4 {[%clk 0:02:20]} 13. a5 {[%clk 0:01:55]}  Qc5 {[%clk 0:02:21]} 14. a6 {[%clk 0:01:56]}  Qh5 {[%clk 0:01:35]} 15. axb7+ {[%clk 0:01:45]}  Kxb7 {[%clk 0:01:36]} 16. b4 {[%clk 0:01:45]}  a5 {[%clk 0:00:50]} 17. bxa5 {[%clk 0:01:38]}  d3 {[%clk 0:00:50]} 18. a6+ {[%clk 0:01:38]}  Ka8 {[%clk 0:00:41]} 19. Nxc7+ {[%clk 0:01:23]}  Kb8 {[%clk 0:00:42]} 20. Qb3+ {[%clk 0:01:24]}  Kxc7 {[%clk 0:00:42]} 21. Bf4+ {[%clk 0:01:23]}  Rd6 {[%clk 0:00:29]} 22. Qb7+ {[%clk 0:01:17]}  Kd8 {[%clk 0:00:29]} 23. a7 {[%clk 0:00:58]}  Nxa7 {[%clk 0:00:27]} 24. Rxa7 {[%clk 0:00:59]}  Rd7 {[%clk 0:00:27]} 25. Qb8+ {[%clk 0:00:59]}  Ke7 {[%clk 0:00:27]} 26. Qd6+ {[%clk 0:01:00]}  Kd8 {[%clk 0:00:25]} 27. Ra8# {[%clk 0:01:00]} 1-0


[Site "https://www.chess.com"]